bitfinex/quotes_BTCUSD_20250825
["timestamp","ask_amount","ask_price","bid_price","bid_amount"]
[1756111895394,0.38897549,111840.0,111830.0,0.001]
[1756111897318,0.38660599,111840.0,111830.0,0.001]
[1756111899610,0.38660599,111840.0,111830.0,0.0041]
[1756111902341,0.0510191,111840.0,111830.0,0.0041]
[1756111902470,0.20917523,111840.0,111830.0,0.0041]
[1756111902674,0.2055791,111840.0,111830.0,0.00605]
[1756111903268,0.2069091,111840.0,111830.0,0.00605]
[1756111903471,0.2055791,111840.0,111830.0,0.00605]
[1756111904220,0.18879003,111840.0,111830.0,0.00605]
[1756111904501,0.18879003,111840.0,111830.0,0.09293475]
[1756111904502,0.19714914,111840.0,111830.0,0.09293475]
[1756111904721,0.0245155,111840.0,111830.0,0.09293475]
[1756111908692,2.99352911,111850.0,111830.0,0.09517028]
[1756111908909,3.20127366,111850.0,111840.0,0.08998475]
[1756111909132,3.20127366,111850.0,111840.0,0.09193475]
[1756111910768,3.20227366,111850.0,111840.0,0.09193475]
[1756111911020,3.20294366,111850.0,111840.0,0.09193475]
[1756111911432,3.20278366,111850.0,111840.0,0.09193475]
[1756111911632,3.20378366,111850.0,111840.0,0.09193475]
[1756111911834,3.04826366,111850.0,111840.0,0.09193475]
[1756111912062,3.20378366,111850.0,111840.0,0.09193475]
[1756111913419,3.04826366,111850.0,111840.0,0.09193475]
[1756111913686,3.20374366,111850.0,111840.0,0.09193475]
[1756111914128,3.03986441,111850.0,111840.0,0.08998475]
[1756111914337,3.04825606,111850.0,111840.0,0.09193475]
[1756111914512,3.20361606,111850.0,111840.0,0.09193475]
[1756111914715,3.20361569,111850.0,111840.0,0.09193475]
[1756111915028,3.38238634,111850.0,111840.0,0.08688475]
[1756111915454,3.22706634,111850.0,111840.0,0.08688475]
[1756111915657,3.38238634,111850.0,111840.0,0.08688475]
[1756111915907,3.22706634,111850.0,111840.0,0.08688475]
[1756111916142,3.38234634,111850.0,111840.0,0.08688475]
[1756111917028,3.20353544,111850.0,111840.0,0.08688475]
[1756111917453,3.2035336,111850.0,111840.0,0.08688475]
[1756111917656,3.2035336,111850.0,111840.0,0.08998475]
[1756111918066,3.2035336,111850.0,111840.0,0.09193475]
[1756111918308,3.0475836,111850.0,111840.0,0.09193475]
[1756111918523,3.2028236,111850.0,111840.0,0.09193475]
[1756111919118,3.20258668,111850.0,111840.0,0.09193475]
[1756111919558,3.04734668,111850.0,111840.0,0.09193475]
[1756111919743,3.20242668,111850.0,111840.0,0.09193475]
[1756111920667,3.20242624,111850.0,111840.0,0.09193475]
[1756111920819,3.04734624,111850.0,111840.0,0.09193475]
[1756111921016,3.02217419,111850.0,111840.0,0.09193475]
[1756111921244,2.99529219,111850.0,111840.0,0.94452682]
[1756111921535,2.99529219,111850.0,111840.0,0.11528119]
[1756111921740,2.99529219,111850.0,111840.0,0.11751652]
[1756111921940,2.99529219,111850.0,111840.0,0.09417008]
[1756111922127,2.99429219,111850.0,111840.0,0.09193475]
[1756111922324,2.99429219,111850.0,111840.0,0.09393475]
[1756111924266,2.99329219,111850.0,111840.0,0.09393475]
[1756111924641,2.99329219,111850.0,111840.0,0.09493475]
[1756111924842,2.99298714,111850.0,111840.0,0.09493475]
[1756111931953,2.99298714,111850.0,111840.0,0.94752682]
[1756111932175,2.99298714,111850.0,111840.0,0.94529149]
[1756111932382,2.99298714,111850.0,111840.0,0.93635149]
[1756111933822,2.99298714,111850.0,111840.0,0.08599475]
[1756111934025,2.99298714,111850.0,111840.0,0.24059475]
[1756111936995,2.99298714,111850.0,111840.0,0.08599475]
[1756111937272,2.99298714,111850.0,111840.0,0.24035475]
[1756111938617,2.99431714,111850.0,111840.0,0.23530475]
[1756111938840,2.99431714,111850.0,111840.0,0.24054475]
[1756111939096,2.99298714,111850.0,111840.0,0.24054475]
[1756111939342,2.77241158,111850.0,111840.0,0.24054475]
[1756111940379,2.77241158,111850.0,111840.0,1.09090149]
[1756111942728,2.77241158,111850.0,111840.0,0.24054475]
[1756111946741,2.77241158,111850.0,111840.0,0.23954475]
[1756111946950,2.77241158,111850.0,111840.0,0.23754475]
[1756111947149,2.77241158,111850.0,111840.0,0.23854475]
[1756111947365,2.77241158,111850.0,111840.0,0.23954475]
[1756111947557,2.77241158,111850.0,111840.0,1.08890149]
[1756111947816,2.77241158,111850.0,111840.0,1.08790149]
[1756111948020,2.77241158,111850.0,111840.0,1.09190149]
[1756111950048,2.77241158,111850.0,111840.0,1.09184064]
[1756111957138,2.77241158,111850.0,111840.0,0.2414839]
[1756111957342,2.77241158,111850.0,111840.0,1.09184064]
[1756111958932,2.77241158,111850.0,111840.0,0.2414839]
[1756111959159,2.77241158,111850.0,111840.0,1.09184064]
[1756111959554,2.77374158,111850.0,111840.0,1.09184064]
[1756111959900,2.77241158,111850.0,111840.0,1.09184064]
[1756111961537,2.77374158,111850.0,111840.0,0.2414839]
[1756111961809,2.77241158,111850.0,111840.0,1.09184064]
[1756111962453,2.77374158,111850.0,111840.0,1.09184064]
[1756111962908,2.77241158,111850.0,111840.0,1.09184064]
[1756111963971,2.77241158,111850.0,111840.0,0.2414839]
[1756111964206,2.77241158,111850.0,111840.0,1.09184064]
[1756111964919,2.77241158,111850.0,111840.0,0.2414839]
[1756111965162,2.77241158,111850.0,111840.0,1.09184064]
[1756111967383,2.77241158,111850.0,111840.0,1.19708364]
[1756111969576,2.77241158,111850.0,111840.0,0.2414839]
[1756111969898,2.77374158,111850.0,111840.0,1.19708364]
[1756111970957,2.77374158,111850.0,111840.0,0.0871239]
[1756111971153,2.77374158,111850.0,111840.0,1.19172364]
[1756111971775,2.77374158,111850.0,111840.0,1.19488364]
[1756111971951,2.77241158,111850.0,111840.0,1.19698364]
[1756111972929,2.77374158,111850.0,111840.0,1.19488364]
[1756111973341,2.77374158,111850.0,111840.0,1.19698364]
[1756111973550,2.77241158,111850.0,111840.0,1.19698364]
[1756111974598,2.77374158,111850.0,111840.0,1.19698364]
[1756111974924,2.77241158,111850.0,111840.0,1.19698364]
[1756111976371,2.77374158,111850.0,111840.0,0.2413839]
[1756111976549,2.77374158,111850.0,111840.0,1.19698364]
[1756111976948,2.77241158,111850.0,111840.0,1.19698364]
[1756111982587,2.77307158,111850.0,111840.0,1.19698364]
[1756111982756,2.77241158,111850.0,111840.0,1.19698364]
[1756111982978,2.77241158,111850.0,111840.0,0.2413839]
[1756111983183,2.77241158,111850.0,111840.0,1.19698364]
[1756111983387,2.77241158,111850.0,111840.0,2.15258338]
[1756111983628,2.77241158,111850.0,111840.0,1.19698364]
[1756111983840,2.77241158,111850.0,111840.0,2.15258338]
[1756111984485,2.77241158,111850.0,111840.0,0.2413839]
[1756111984695,2.77241158,111850.0,111840.0,2.15258338]
[1756111984907,2.77241158,111850.0,111840.0,2.2700324]
[1756111985553,2.77241158,111850.0,111840.0,2.2969054]
[1756111987792,2.77241158,111850.0,111840.0,2.6369054]
[1756111988625,2.77241158,111850.0,111840.0,2.6349054]
[1756111988757,2.77241158,111850.0,111840.0,2.6329054]
[1756111988964,2.77241158,111850.0,111840.0,2.4816654]
[1756111989161,2.77241158,111850.0,111840.0,2.4846654]
[1756111989535,2.77241158,111850.0,111840.0,2.6388254]
[1756111990929,2.77241158,111850.0,111840.0,0.72762592]
[1756111991130,2.77241158,111850.0,111840.0,2.6388254]
[1756111995073,2.77241158,111850.0,111840.0,2.4846654]
[1756111995232,2.77241158,111850.0,111840.0,2.6388254]
[1756111996515,2.77241158,111850.0,111840.0,0.72762592]
[1756111996662,2.77241158,111850.0,111840.0,2.6388254]
[1756112000487,2.77241158,111850.0,111840.0,2.4757454]
[1756112000689,2.77241158,111850.0,111840.0,2.6298654]
[1756112003932,2.77241158,111850.0,111840.0,2.7798654]
[1756112005261,2.77241158,111850.0,111840.0,2.6257454]
[1756112005483,2.77241158,111850.0,111840.0,2.7768254]
[1756112005833,2.77241158,111850.0,111840.0,2.7788254]
[1756112006266,2.77241158,111850.0,111840.0,2.7818254]
[1756112006809,2.77241158,111850.0,111840.0,2.6277454]
[1756112007031,2.77241158,111850.0,111840.0,2.7818254]
[1756112007480,2.77241158,111850.0,111840.0,0.4438369]
[1756112007481,2.77457158,111850.0,111840.0,0.4438369]
[1756112007694,2.77457158,111850.0,111840.0,1.52664364]
[1756112007898,2.77457158,111850.0,111840.0,1.37256364]
[1756112008132,2.77457158,111850.0,111840.0,1.52664364]
[1756112008535,2.77457158,111850.0,111840.0,1.51864364]
[1756112009346,2.77457158,111850.0,111840.0,0.5630439]
[1756112010418,2.77457158,111850.0,111840.0,1.41251503]
[1756112010631,2.77374158,111850.0,111840.0,1.41251503]
[1756112015381,2.77374158,111850.0,111840.0,1.25843503]
[1756112015600,2.77457158,111850.0,111840.0,0.0689639]
[1756112016004,2.77457158,111850.0,111840.0,0.2230439]
[1756112017025,2.77457158,111850.0,111840.0,0.2409739]
[1756112017277,2.77457158,111850.0,111840.0,0.2230439]
[1756112018073,2.77457158,111850.0,111840.0,0.2230039]
[1756112019416,2.80145058,111850.0,111840.0,0.2230039]
[1756112023094,2.80062058,111850.0,111840.0,0.2230039]
[1756112023537,2.80145058,111850.0,111840.0,0.2230039]
[1756112024154,2.77374158,111850.0,111840.0,0.2230039]
[1756112027693,2.77457158,111850.0,111840.0,0.2230039]
[1756112027926,2.77374158,111850.0,111840.0,0.2230039]
[1756112032672,2.77457158,111850.0,111840.0,0.2230039]
[1756112032877,2.77374158,111850.0,111840.0,0.2230039]
[1756112037048,2.77374158,111850.0,111840.0,0.2230539]
[1756112039362,2.77457158,111850.0,111840.0,0.0690139]
[1756112039572,2.77457158,111850.0,111840.0,0.2230139]
[1756112039776,2.80145158,111850.0,111840.0,0.2230139]
[1756112040611,2.80245158,111850.0,111840.0,0.2230139]
[1756112041027,2.97461237,111850.0,111840.0,0.2230139]
[1756112041876,2.97561237,111850.0,111840.0,0.2230139]
[1756112045007,2.97478237,111850.0,111840.0,0.2230139]
[1756112048610,2.74969882,111850.0,111840.0,0.2230139]
[1756112052827,2.59569882,111850.0,111840.0,0.2230139]
[1756112055707,2.57753803,111850.0,111840.0,0.2172539]
[1756112056210,2.52753803,111850.0,111840.0,0.2172539]
[1756112056857,2.52753803,111850.0,111840.0,0.2140739]
[1756112057518,2.52753803,111850.0,111840.0,0.2172539]
[1756112057748,2.52753803,111850.0,111840.0,0.2140739]
[1756112059546,2.52753803,111850.0,111840.0,0.2172539]
[1756112059772,2.52753803,111850.0,111840.0,0.2192239]
[1756112060192,2.52753803,111850.0,111840.0,0.2172539]
[1756112061835,2.52753803,111850.0,111840.0,0.21681795]
[1756112062237,2.52753803,111850.0,111840.0,0.21878795]
[1756112062639,2.52753803,111850.0,111840.0,0.21681795]
[1756112067934,2.52753803,111850.0,111840.0,0.21363795]
[1756112068339,2.52753803,111850.0,111840.0,0.21681795]
[1756112069239,2.68141803,111850.0,111840.0,0.21681795]
[1756112070413,2.68141803,111850.0,111840.0,0.05963795]
[1756112070628,2.68141803,111850.0,111840.0,0.21347795]
[1756112070846,2.52753803,111850.0,111840.0,0.21665795]
[1756112071065,2.68137803,111850.0,111840.0,0.21862795]
[1756112071631,2.68137803,111850.0,111840.0,0.21665795]
[1756112075679,2.68137803,111850.0,111840.0,0.21347795]
[1756112076032,2.68137803,111850.0,111840.0,0.21665795]
[1756112077769,2.50296388,111850.0,111840.0,0.21665795]
[1756112079429,2.50292388,111850.0,111840.0,0.21862795]
[1756112079625,2.50159388,111850.0,111840.0,0.21862795]
[1756112079900,2.50292388,111850.0,111840.0,0.21862795]
[1756112081765,2.50292388,111850.0,111840.0,0.21665795]
[1756112085262,2.50292388,111850.0,111840.0,0.06281795]
[1756112085460,2.50292388,111850.0,111840.0,0.21339795]
[1756112086381,2.50292388,111850.0,111840.0,0.05963795]
[1756112090298,2.68173478,111850.0,111840.0,0.05963795]
[1756112090541,2.50292388,111850.0,111840.0,5e-05]
[1756112091674,2.68256478,111850.0,111840.0,5e-05]
[1756112091890,2.50375388,111850.0,111840.0,5e-05]
[1756112092735,2.68256478,111850.0,111840.0,5e-05]
[1756112093545,3.02256478,111850.0,111840.0,5e-05]
[1756112094153,3.02156478,111850.0,111840.0,5e-05]
[1756112094353,3.02356478,111850.0,111840.0,5e-05]
[1756112095030,3.02256478,111850.0,111840.0,5e-05]
[1756112095432,3.02356478,111850.0,111840.0,5e-05]
[1756112095816,3.08709617,111850.0,111840.0,5e-05]
[1756112096424,3.08609617,111850.0,111840.0,5e-05]
[1756112096772,3.08709617,111850.0,111840.0,5e-05]
[1756112096986,3.11600413,111850.0,111840.0,5e-05]
[1756112097193,3.14677308,111850.0,111840.0,5e-05]
[1756112097401,3.12999604,111850.0,111840.0,5e-05]
[1756112097786,3.12799604,111850.0,111840.0,5e-05]
[1756112097994,3.13199604,111850.0,111840.0,5e-05]
[1756112098144,3.12699604,111850.0,111840.0,5e-05]
[1756112098552,3.13399604,111850.0,111840.0,5e-05]
[1756112098966,3.13099604,111850.0,111840.0,5e-05]
[1756112099363,3.13399604,111850.0,111840.0,5e-05]
[1756112100178,3.23832981,111850.0,111840.0,5e-05]
[1756112100379,3.26347586,111850.0,111840.0,5e-05]
[1756112100724,3.10967586,111850.0,111840.0,5e-05]
[1756112100919,3.25497358,111850.0,111840.0,5e-05]
[1756112101356,3.24936363,111850.0,111840.0,5e-05]
[1756112102013,3.27970851,111850.0,111840.0,5e-05]
[1756112102218,8.00090151,111850.0,111840.0,5e-05]
[1756112102425,8.00086151,111850.0,111840.0,5e-05]
[1756112103483,7.99686151,111850.0,111840.0,5e-05]
[1756112103693,0.1963079,111820.0,111810.0,8.57e-05]
[1756112103909,0.54310916,111820.0,111810.0,8.57e-05]
[1756112104120,0.57334712,111820.0,111810.0,8.57e-05]
[1756112104328,0.57776312,111820.0,111810.0,8.57e-05]
[1756112104750,0.91776312,111820.0,111810.0,8.57e-05]
[1756112105174,0.91876312,111820.0,111810.0,8.57e-05]
[1756112105396,0.93275875,111820.0,111810.0,8.57e-05]
[1756112106030,0.93475875,111820.0,111810.0,8.57e-05]
[1756112107670,5.65595175,111820.0,111810.0,8.57e-05]
[1756112108484,5.68629663,111820.0,111810.0,8.57e-05]
[1756112109094,5.68429663,111820.0,111810.0,8.57e-05]
[1756112109310,5.68629663,111820.0,111810.0,8.57e-05]
[1756112110274,5.68529663,111820.0,111810.0,8.57e-05]
[1756112110485,5.68629663,111820.0,111810.0,8.57e-05]
[1756112110667,5.68429663,111820.0,111810.0,8.57e-05]
[1756112111044,5.68529663,111820.0,111810.0,8.57e-05]
[1756112111453,0.56523185,111810.0,111800.0,5e-05]
[1756112111609,5.61514925,111810.0,111800.0,5e-05]
[1756112111810,5.61597925,111810.0,111800.0,5e-05]
[1756112113194,5.61697925,111810.0,111800.0,5e-05]
[1756112114234,5.62056625,111810.0,111800.0,5e-05]
[1756112114662,5.63456485,111810.0,111800.0,5e-05]
[1756112115279,5.48092485,111810.0,111800.0,5e-05]
[1756112115453,5.63456485,111810.0,111800.0,5e-05]
[1756112116435,5.52069217,111810.0,111800.0,5e-05]
[1756112116679,5.67433217,111810.0,111800.0,5e-05]
[1756112116881,0.17890687,111790.0,111780.0,0.00318]
[1756112117088,0.1963719,111780.0,111770.0,0.00323]
[1756112117311,0.43689665,111780.0,111770.0,0.00533]
[1756112117512,0.31016165,111780.0,111770.0,0.00533]
[1756112117834,0.46380165,111780.0,111770.0,0.00533]
[1756112118034,0.5506713,111780.0,111770.0,0.00533]
[1756112118244,0.5506713,111780.0,111770.0,0.00933]
[1756112118385,0.5506713,111780.0,111770.0,0.00937803]
[1756112118843,0.5506713,111780.0,111770.0,0.01137803]
[1756112119597,0.56563742,111780.0,111770.0,0.00937803]
[1756112119913,0.56563742,111780.0,111770.0,0.00537803]
[1756112120115,0.56696742,111780.0,111770.0,0.00537803]
[1756112120315,0.56696742,111780.0,111770.0,0.00737803]
[1756112120316,1.01536742,111780.0,111770.0,0.00737803]
[1756112121487,1.05528648,111780.0,111770.0,0.00737803]
[1756112122277,0.90164648,111780.0,111770.0,0.00737803]
[1756112122440,1.05528648,111780.0,111770.0,0.00737803]
[1756112122844,1.24164648,111780.0,111770.0,0.00209803]
[1756112123078,1.39524648,111780.0,111770.0,0.00527803]
[1756112123293,1.39524648,111780.0,111770.0,0.00737803]
[1756112124499,1.39391648,111780.0,111770.0,0.00737803]
[1756112126622,1.40791673,111780.0,111770.0,0.00737803]
[1756112129354,0.18791361,111760.0,111720.0,0.91870139]
[1756112129555,0.00223613,111750.0,111730.0,0.08688475]
[1756112129733,0.15583613,111750.0,111740.0,0.0021]
[1756112129953,0.15583613,111750.0,111740.0,0.08898475]
[1756112130351,0.18274213,111750.0,111740.0,0.08898475]
[1756112130560,0.22124034,111750.0,111740.0,0.08898475]
[1756112130930,0.22124034,111750.0,111740.0,0.09298475]
[1756112131127,0.06764034,111750.0,111740.0,0.09298475]
[1756112131326,0.02914213,111750.0,111740.0,0.09616475]
[1756112132790,0.02914213,111750.0,111740.0,0.09916475]
[1756112134467,0.026906,111750.0,111740.0,2.01650606]
[1756112134664,0.46336612,111780.0,111740.0,2.01426873]
[1756112134867,0.00223613,111770.0,111760.0,0.95755199]
[1756112135007,0.00223613,111770.0,111760.0,0.09216475]
[1756112135615,0.02913713,111770.0,111760.0,0.09216475]
[1756112137032,0.026901,111770.0,111760.0,1.05195367]
[1756112137244,0.026901,111770.0,111760.0,1.05071674]
[1756112137464,0.15579613,111790.0,111760.0,0.94353596]
[1756112137642,0.026896,111780.0,111770.0,0.09006475]
[1756112137873,0.026896,111780.0,111770.0,0.08688475]
[1756112138254,0.026896,111780.0,111770.0,0.08898475]
[1756112138486,0.026896,111780.0,111770.0,0.09216475]
[1756112139112,0.026896,111780.0,111770.0,0.09416475]
[1756112139590,0.026896,111780.0,111770.0,0.09516475]
[1756112144489,0.00223613,111790.0,111770.0,0.09516475]
[1756112144716,0.00223613,111790.0,111780.0,0.00311]
[1756112144915,0.00223613,111790.0,111780.0,0.09214475]
[1756112145685,0.00323613,111790.0,111780.0,0.09214475]
[1756112145906,0.00323613,111790.0,111780.0,0.94251596]
[1756112146128,0.00223613,111790.0,111780.0,0.94251596]
[1756112146370,0.001,111790.0,111780.0,1.09599596]
[1756112146595,0.001,111790.0,111780.0,0.24562475]
[1756112146818,0.001,111790.0,111780.0,1.09599596]
[1756112147744,0.001,111790.0,111780.0,0.24558475]
[1756112147965,0.00223613,111810.0,111780.0,1.09595596]
[1756112148192,0.00238009,111810.0,111790.0,0.08688475]
[1756112148420,0.00454009,111810.0,111800.0,0.00215]
[1756112149208,0.00454009,111810.0,111800.0,0.00526]
[1756112149670,0.00554009,111810.0,111800.0,0.00526]
[1756112150402,0.18441496,111810.0,111800.0,0.00215]
[1756112150631,0.23424716,111810.0,111790.0,0.08688475]
[1756112150825,0.00223613,111800.0,111790.0,0.08688475]
[1756112151035,0.00439613,111800.0,111790.0,0.08903475]
[1756112151229,0.00761613,111800.0,111780.0,0.07191]
[1756112151438,0.00761613,111800.0,111780.0,0.31223475]
[1756112151631,0.00439613,111800.0,111790.0,0.00215]
[1756112152035,0.00439613,111800.0,111790.0,0.00315]
[1756112152231,0.00439613,111800.0,111790.0,0.00626]
[1756112153006,0.00439613,111800.0,111790.0,0.00526]
[1756112153381,0.00761613,111800.0,111780.0,0.08788475]
[1756112153580,0.00761613,111800.0,111780.0,0.09099475]
[1756112153783,0.1865075,111800.0,111780.0,0.09099475]
[1756112153985,0.00223613,111790.0,111780.0,0.09099475]
[1756112154191,0.00223613,111790.0,111780.0,0.09314475]
[1756112154576,0.00223613,111790.0,111780.0,0.09214475]
[1756112154989,0.00223613,111790.0,111780.0,0.09314475]
[1756112155194,0.00223613,111790.0,111780.0,0.09514475]
[1756112155594,0.00223613,111790.0,111780.0,0.09714475]
[1756112156044,0.00439613,111790.0,111780.0,0.09714475]
[1756112159818,0.00439613,111790.0,111780.0,0.09403475]
[1756112160046,0.183303,111790.0,111780.0,0.00715]
[1756112160282,0.23490551,111790.0,111780.0,0.005]
[1756112160512,0.60180351,111790.0,111780.0,0.005]
[1756112160706,0.75516351,111790.0,111780.0,0.005]
[1756112160909,0.79478884,111790.0,111780.0,0.005]
[1756112161663,0.5908102,111790.0,111780.0,0.002]
[1756112161869,0.34,111780.0,111770.0,0.00311]
[1756112162104,0.34,111780.0,111770.0,0.00526]
[1756112163739,0.51892288,111780.0,111770.0,0.00526]
[1756112164076,0.51892288,111780.0,111770.0,0.00726]
[1756112164280,0.60579253,111780.0,111770.0,0.00826]
[1756112164482,0.60795253,111780.0,111770.0,0.00831]
[1756112166190,0.60795253,111780.0,111770.0,0.0052]
[1756112167094,0.76127253,111780.0,111770.0,0.0052]
[1756112167515,0.78817253,111780.0,111770.0,0.0052]
[1756112167703,0.60924965,111780.0,111770.0,0.0052]
[1756112168145,0.36906,111780.0,111770.0,0.0052]
[1756112168352,0.52238,111780.0,111770.0,0.00831]
[1756112169197,0.70130288,111780.0,111770.0,0.00831]
[1756112169440,0.70130288,111780.0,111770.0,0.0052]
[1756112169927,0.52238,111780.0,111770.0,0.0052]
[1756112170734,0.52238,111780.0,111770.0,0.00835]
[1756112171673,0.52238,111780.0,111770.0,0.0052]
[1756112172318,0.36906,111780.0,111770.0,0.0052]
[1756112172519,0.52238,111780.0,111770.0,0.00835]
[1756112173146,0.52238,111780.0,111770.0,0.0052]
[1756112174001,0.18238,111780.0,111770.0,0.0052]
[1756112174974,0.18538,111780.0,111770.0,0.0052]
[1756112175737,0.18538,111780.0,111770.0,0.00305]
[1756112177294,0.18538,111780.0,111770.0,0.00514]
[1756112177897,0.18538,111780.0,111770.0,0.00305]
[1756112178229,0.36430288,111780.0,111770.0,0.00305]
[1756112178838,0.52538,111780.0,111770.0,0.00305]
[1756112183039,0.33216288,111780.0,111770.0,0.00305]
[1756112183233,0.33368288,111780.0,111770.0,0.0062]
[1756112184428,0.33368288,111780.0,111770.0,0.00829]
[1756112185630,0.15476,111780.0,111770.0,0.00829]
[1756112185833,0.15699613,111780.0,111770.0,0.00829]
[1756112187070,0.33591901,111780.0,111770.0,0.00829]
[1756112187199,0.33368288,111780.0,111770.0,0.00829]
[1756112188379,0.1532,111780.0,111770.0,0.00829]
[1756112188581,0.17222198,111780.0,111770.0,0.00829]
[1756112188790,0.35266486,111780.0,111770.0,0.00829]
[1756112188948,0.35042873,111780.0,111770.0,0.00829]
[1756112190530,0.35042873,111780.0,111770.0,0.00305]
[1756112191746,0.35042873,111780.0,111760.0,0.00315]
[1756112191972,0.00223613,111770.0,111760.0,0.09003475]
[1756112192171,0.00223613,111770.0,111760.0,0.09212475]
[1756112193345,0.00223613,111770.0,111760.0,0.09312475]
[1756112193559,0.00223613,111770.0,111760.0,0.09212475]
[1756112193957,0.00223613,111770.0,111760.0,0.09512475]
[1756112194627,0.00223613,111770.0,111760.0,0.09412475]
[1756112194851,0.00223613,111770.0,111760.0,0.09612475]
[1756112200034,0.00223613,111770.0,111760.0,1.20650282]
[1756112200295,0.00223613,111770.0,111760.0,0.24928475]
[1756112205019,0.02913713,111770.0,111760.0,0.24928475]
[1756112209747,0.02913713,111770.0,111760.0,0.09612475]
[1756112209987,0.02913713,111770.0,111760.0,0.24920475]
[1756112213619,0.02913713,111770.0,111760.0,0.24885392]
[1756112229298,0.34223613,111790.0,111760.0,1.20607199]
[1756112229532,0.026897,111780.0,111770.0,0.08418475]
[1756112229764,0.02913313,111780.0,111770.0,0.08632475]
[1756112230268,0.02913313,111780.0,111770.0,1.04354282]
[1756112231116,0.02913313,111780.0,111770.0,1.04454282]
[1756112231764,0.02913313,111780.0,111770.0,0.08732475]
[1756112231900,0.02913313,111780.0,111770.0,0.08832475]
[1756112232334,0.77613776,111800.0,111770.0,0.08832475]
[1756112232546,4.798e-05,111790.0,111780.0,0.15609]
[1756112232762,0.00202798,111790.0,111780.0,0.15609]
[1756112232989,0.01883284,111790.0,111780.0,0.15609]
[1756112233232,0.01883284,111790.0,111780.0,0.15823]
[1756112233442,0.04573084,111790.0,111780.0,0.15823]
[1756112233777,0.04673084,111790.0,111780.0,0.15823]
[1756112235573,0.38673084,111790.0,111780.0,0.15819]
[1756112235813,0.56563771,111790.0,111780.0,0.15288]
[1756112236037,0.56563771,111790.0,111770.0,0.23706475]
[1756112236481,0.53873971,111790.0,111780.0,0.00317]
[1756112236937,0.56563771,111790.0,111780.0,0.00317]
[1756112237154,0.56463771,111790.0,111780.0,0.00317]
[1756112237599,0.56563588,111790.0,111780.0,0.00317]
[1756112237810,0.56463588,111790.0,111780.0,0.00317]
[1756112238015,0.56563588,111790.0,111780.0,0.00317]
[1756112239012,0.38672901,111790.0,111780.0,0.00317]
[1756112239572,0.38672901,111790.0,111780.0,0.00531]
[1756112240226,0.36794598,111790.0,111780.0,1.04941282]
[1756112240468,0.34104798,111790.0,111780.0,1.04941282]
[1756112240734,0.00104798,111790.0,111780.0,1.04941282]
[1756112240951,4.798e-05,111790.0,111780.0,1.04941282]
[1756112241166,4.798e-05,111790.0,111780.0,1.05141282]
[1756112241375,4.798e-05,111790.0,111780.0,0.09419475]
[1756112241591,4.798e-05,111790.0,111780.0,0.24703475]
[1756112244374,4.798e-05,111790.0,111780.0,0.24699475]
[1756112250489,4.798e-05,111790.0,111780.0,0.09419475]
[1756112250956,4.798e-05,111790.0,111780.0,0.24695475]
[1756112251514,0.58045763,111800.0,111780.0,0.24695475]
[1756112251722,0.62413748,111800.0,111780.0,0.24695475]
[1756112252334,0.62413748,111800.0,111780.0,0.24595475]
[1756112252951,0.62413748,111800.0,111780.0,0.24495475]
[1756112253155,0.62513748,111800.0,111780.0,0.24495475]
[1756112255030,0.62807748,111800.0,111780.0,0.23603475]
[1756112256677,0.00209,111790.0,111780.0,0.23817475]
[1756112257108,0.00209,111790.0,111780.0,0.24134475]
[1756112259865,0.00514,111790.0,111780.0,0.15272]
[1756112260080,0.00514,111790.0,111780.0,0.15445]
[1756112260913,0.00514,111790.0,111780.0,0.1545]
[1756112265993,0.21473507,111800.0,111780.0,0.15745]
[1756112266208,0.23152772,111800.0,111780.0,0.15745]
[1756112267587,0.23252772,111800.0,111780.0,0.00473]
[1756112267985,0.22663318,111800.0,111780.0,0.00473]
[1756112269197,0.23503388,111800.0,111780.0,0.00473]
[1756112270758,0.20984053,111800.0,111780.0,0.00473]
[1756112270972,0.23504888,111800.0,111780.0,0.00473]
[1756112272628,0.00198,111790.0,111780.0,0.00473]
[1756112274170,0.00198,111790.0,111780.0,0.00573]
[1756112278064,0.34198,111790.0,111780.0,0.00573]
[1756112281777,0.34198,111790.0,111780.0,0.00278]
[1756112283721,0.34198,111790.0,111780.0,0.00378]
[1756112283941,0.34,111790.0,111780.0,0.00573]
[1756112284378,0.34,111790.0,111780.0,0.00673]
[1756112284583,0.34198,111790.0,111780.0,0.00673]
[1756112289353,0.34198,111790.0,111780.0,0.00378]
[1756112289589,0.345,111790.0,111780.0,0.00378]
[1756112289824,0.34198,111790.0,111780.0,0.00378]
[1756112291798,0.345,111790.0,111780.0,0.00205]
[1756112292872,0.345,111790.0,111780.0,0.00409]
[1756112293166,0.345,111790.0,111780.0,0.00205]
[1756112294785,0.52390687,111790.0,111780.0,0.00205]
[1756112295206,0.67634687,111790.0,111780.0,0.00205]
[1756112295410,0.70324787,111790.0,111780.0,0.00205]
[1756112295620,0.70324787,111790.0,111780.0,0.00105]
[1756112296067,0.70324787,111790.0,111780.0,5e-05]
[1756112296707,0.79011752,111790.0,111780.0,5e-05]
[1756112297857,1.39929527,111790.0,111780.0,5e-05]
[1756112298121,0.5189549,111760.0,111750.0,5e-05]
[1756112298335,0.5189549,111760.0,111750.0,0.0001942]
[1756112298336,0.82917965,111760.0,111750.0,0.0001942]
[1756112298555,0.9164195,111760.0,111750.0,0.0001942]
[1756112298803,0.99261549,111760.0,111750.0,0.0001942]
[1756112299237,0.97585146,111760.0,111750.0,0.0001942]
[1756112299874,0.9463495,111760.0,111750.0,0.0001942]
[1756112300549,0.9473495,111760.0,111750.0,0.0001942]
[1756112301437,0.9483495,111760.0,111750.0,0.0001942]
[1756112302295,0.7959495,111760.0,111750.0,0.0001942]
[1756112302521,0.98791292,111760.0,111750.0,0.0001942]
[1756112304376,1.00461569,111760.0,111750.0,0.0001942]
[1756112304596,1.06446253,111760.0,111750.0,0.0001942]
[1756112304820,1.09591418,111760.0,111750.0,0.0001942]
[1756112305067,1.24827418,111760.0,111750.0,0.0001942]
[1756112305349,0.51901897,111720.0,111710.0,0.0004]
[1756112305594,0.74118259,111720.0,111710.0,0.00088099]
[1756112305809,0.83020734,111720.0,111710.0,0.00088099]
[1756112306031,0.83681634,111720.0,111710.0,0.00088099]
[1756112306450,0.84897502,111720.0,111710.0,0.00088099]
[1756112306922,0.84897502,111720.0,111710.0,0.00288099]
[1756112307142,0.73722488,111720.0,111710.0,0.00088099]
[1756112307350,0.89058488,111720.0,111710.0,0.00088099]
[1756112308005,0.73822488,111720.0,111710.0,0.00088099]
[1756112308217,0.89058488,111720.0,111710.0,0.00088099]
[1756112309157,0.73822488,111720.0,111710.0,0.00088099]
[1756112309339,0.89058488,111720.0,111710.0,0.00088099]
[1756112310739,0.73822488,111720.0,111710.0,0.00292099]
[1756112310991,0.89058488,111720.0,111710.0,0.00088099]
[1756112311239,0.6474563,111720.0,111710.0,0.00088099]
[1756112311477,0.82647527,111720.0,111710.0,0.00088099]